bitfinex/quotes_ETHUSD_20250703
["timestamp","ask_amount","ask_price","bid_price","bid_amount"]
[1751548137750,0.01,2595.7,2595.4,4.68095603]
[1751548137910,0.01,2595.7,2595.6,5.18494882]
[1751548140048,0.01,2595.7,2595.6,0.753]
[1751548140661,0.01,2595.7,2595.6,4.79767375]
[1751548141056,0.01,2595.7,2595.6,4.83620048]
[1751548141232,0.01,2595.7,2595.6,4.79767375]
[1751548143325,0.01,2595.7,2595.6,0.945]
[1751548143655,0.01,2595.7,2595.6,4.79767375]
[1751548143954,0.01,2595.7,2595.6,5.47728164]
[1751548144152,0.01,2595.7,2595.6,5.51580837]
[1751548144364,0.01,2595.7,2595.6,5.47728164]
[1751548144653,0.01,2595.7,2595.6,1.62460789]
[1751548145028,0.01,2595.7,2595.6,0.945]
[1751548145248,0.01,2595.7,2595.6,0.753]
[1751548146022,0.01,2595.7,2595.6,4.60567375]
[1751548146263,0.01,2595.7,2595.6,0.753]
[1751548147059,0.01,2595.7,2595.6,0.945]
[1751548147468,0.01,2595.7,2595.6,0.753]
[1751548148054,0.01,2595.7,2595.6,4.64420048]
[1751548148252,0.01,2595.7,2595.6,5.64937335]
[1751548149135,0.01,2595.7,2595.6,5.68790008]
[1751548149344,0.01,2595.7,2595.6,5.64937335]
[1751548151248,0.01,2595.7,2595.6,5.68790008]
[1751548151448,0.01,2595.7,2595.6,5.64937335]
[1751548151774,0.01,2595.7,2595.6,5.68790008]
[1751548152559,0.01,2595.7,2595.6,5.64937335]
[1751548154378,0.01,2595.7,2595.6,4.79767375]
[1751548154577,0.01,2595.7,2595.6,4.83620048]
[1751548155164,0.01,2595.7,2595.6,4.79767375]
[1751548158783,0.01,2595.7,2595.6,4.83620048]
[1751548159600,0.01,2595.7,2595.6,4.79767375]
[1751548159750,0.01,2595.7,2595.6,6.47912132]
[1751548161892,0.01,2595.7,2595.6,14.61912132]
[1751548162577,0.01,2595.7,2595.6,0.945]
[1751548162778,0.01,2595.7,2595.6,12.93767375]
[1751548166821,0.01,2595.7,2595.6,12.93467375]
[1751548169881,0.01,2595.7,2595.6,12.93267375]
[1751548170884,1e-08,2595.7,2595.6,12.93267375]
[1751548171085,1e-08,2595.7,2595.6,14.61321015]
[1751548171822,1e-08,2595.7,2595.6,15.16321015]
[1751548172123,1e-08,2595.7,2595.6,25.16321015]
[1751548172318,0.01,2596.8,2596.7,3.8510417]
[1751548172519,0.01,2596.8,2596.7,12.7386417]
[1751548172737,0.8206,2597.7,2597.4,3.85000385]
[1751548172914,0.90863037,2598.0,2597.4,4.04200385]
[1751548172915,0.192,2597.8,2597.4,4.04200385]
[1751548173115,0.192,2597.8,2597.4,0.192]
[1751548173319,1.0226,2597.5,2597.1,3.85037225]
[1751548173620,1.0226,2597.5,2597.0,4.04253056]
[1751548174031,1.0226,2597.5,2597.0,0.192]
[1751548174216,3.0776,2597.5,2597.0,0.192]
[1751548174384,0.8206,2597.0,2596.6,0.192]
[1751548174588,0.8206,2597.0,2596.2,11.98370481]
[1751548174820,0.192,2596.9,2596.4,0.192]
[1751548176889,12.98155114,2596.8,2596.4,0.192]
[1751548177086,0.9917,2596.4,2596.0,0.192]
[1751548177329,0.9917,2596.4,2595.8,0.192]
[1751548177330,0.192,2596.3,2595.8,0.192]
[1751548180418,3.85189875,2596.2,2595.8,0.192]
[1751548180928,3.85178337,2596.2,2595.8,0.192]
[1751548181129,4.61698238,2596.1,2595.8,0.192]
[1751548181429,3.85224907,2595.9,2595.5,0.192]
[1751548181802,13.17355114,2596.0,2595.5,0.192]
[1751548182335,17.0256416,2596.0,2595.5,0.192]
[1751548182505,3.85234873,2595.9,2595.5,0.192]
[1751548182832,3.85282219,2595.5,2595.4,0.02]
[1751548183131,4.82362219,2595.5,2595.4,0.02]
[1751548183315,35.37362219,2595.5,2595.4,0.02]
[1751548183523,6.2780525,2595.5,2595.4,0.02]
[1751548183828,5.37362219,2595.5,2595.4,0.02]
[1751548184930,4.82362219,2595.5,2595.4,0.02]
[1751548185137,17.42962219,2595.5,2595.4,0.02]
[1751548185440,7.42962219,2595.5,2595.4,0.02]
[1751548186139,7.78631384,2595.5,2595.4,0.02]
[1751548186517,7.42962219,2595.5,2595.4,0.02]
[1751548187026,0.9708,2595.5,2595.4,0.02]
[1751548187202,7.42162219,2595.5,2595.4,0.02]
[1751548187406,37.42162219,2595.5,2595.4,0.02]
[1751548188606,3.0188,2595.5,2595.4,0.02]
[1751548188807,3.85230114,2595.9,2595.4,0.7825]
[1751548189115,0.192,2595.7,2595.4,0.02]
[1751548189317,13.97135114,2595.7,2595.4,0.02]
[1751548189523,3.85274224,2595.6,2595.4,0.02]
[1751548189736,17.63193953,2595.7,2595.4,0.02]
[1751548189931,3.85269424,2595.6,2595.4,0.02]
[1751548190127,13.77935114,2595.7,2595.4,0.02]
[1751548190437,3.8527127,2595.6,2595.4,0.02]
[1751548190830,3.85282219,2595.5,2595.4,0.02]
[1751548191234,17.63192219,2595.7,2595.4,0.02]
[1751548191442,3.85282219,2595.5,2595.4,0.02]
[1751548192141,5.90082219,2595.5,2595.4,0.02]
[1751548192547,2.048,2595.5,2595.4,0.02]
[1751548192912,5.90082219,2595.5,2595.4,0.02]
[1751548193433,14.83892219,2595.5,2595.4,0.02]
[1751548194821,15.38892219,2595.5,2595.4,0.02]
[1751548201640,11.5361,2595.5,2595.4,0.02]
[1751548201822,15.38892219,2595.5,2595.4,0.02]
[1751548202018,53.37892219,2595.5,2595.4,0.02]
[1751548202226,35.21241605,2595.1,2595.0,0.02]
[1751548202528,10.168,2595.1,2595.0,0.02]
[1751548203136,13.79055114,2595.4,2595.0,0.02]
[1751548203333,2.048,2595.1,2595.0,0.02]
[1751548203726,2.048,2595.1,2595.0,3.87356454]
[1751548203934,7.99,2595.5,2595.2,3.85315962]
[1751548204160,8.182,2595.5,2595.2,5.39892641]
[1751548204641,8.182,2595.5,2595.3,3.8530965]
[1751548205029,8.182,2595.5,2595.3,3.85304947]
[1751548205229,8.182,2595.5,2595.2,1.54576679]
[1751548206055,8.182,2595.5,2595.2,0.7731]
[1751548206261,8.182,2595.5,2595.3,3.85311489]
[1751548206428,0.192,2595.5,2595.2,4.62632121]
[1751548207283,0.192,2595.5,2595.2,0.7731]
[1751548207579,0.192,2595.8,2595.3,0.192]
[1751548208437,0.192,2595.8,2595.3,4.04510712]
[1751548208644,0.192,2595.8,2595.3,0.192]
[1751548209578,0.192,2595.8,2595.3,4.04510519]
[1751548209780,0.192,2595.8,2595.3,0.192]
[1751548209938,0.192,2595.8,2595.3,4.04502631]
[1751548210135,0.192,2595.8,2595.4,3.85296182]
[1751548210444,0.192,2595.8,2595.3,4.9122135]
[1751548210645,0.192,2595.8,2595.3,1.05913862]
[1751548210829,0.192,2595.8,2595.3,4.91217964]
[1751548211032,0.192,2595.8,2595.3,1.05913862]
[1751548211261,0.5498349,2595.8,2595.3,1.05913862]
[1751548211641,1.4654086,2595.8,2595.4,3.85296594]
[1751548211864,1.1075737,2595.8,2595.3,4.91221006]
[1751548212045,1.1075737,2595.8,2595.3,1.05913862]
[1751548212240,0.192,2595.8,2595.4,3.85297064]
[1751548212443,0.35795001,2595.9,2595.5,3.85282219]
[1751548212646,0.9155737,2596.0,2595.6,3.8525905]
[1751548212647,1.46552371,2596.0,2595.6,3.8525905]
[1751548212844,1.1075737,2596.0,2595.5,0.192]
[1751548213260,0.35797611,2595.9,2595.5,0.192]
[1751548214046,1.1075737,2596.0,2595.5,4.83462254]
[1751548214263,1.1075737,2596.0,2595.6,3.85267375]
[1751548214264,9.2205737,2596.0,2595.6,3.85267375]
[1751548214565,8.305,2596.0,2595.6,3.85267375]
[1751548214866,9.22121582,2596.0,2595.6,3.85267375]
[1751548215266,9.22121582,2596.0,2595.5,0.98180692]
[1751548215267,9.22121582,2596.0,2595.5,4.83454927]
[1751548215480,9.22121582,2596.0,2595.5,0.98180692]
[1751548215779,9.22121582,2596.0,2595.5,0.192]
[1751548216564,0.192,2595.8,2595.3,4.04511663]
[1751548216768,0.192,2595.8,2595.4,0.02]
[1751548218386,0.192,2595.8,2595.4,3.87296432]
[1751548219252,0.192,2595.8,2595.4,0.02]
[1751548220789,12.98155114,2595.7,2595.4,0.02]
[1751548220990,5.17962219,2595.5,2595.4,0.02]
[1751548221140,37.21962219,2595.5,2595.4,0.02]
[1751548221637,6.09497043,2595.5,2595.4,0.02]
[1751548221877,15.32762219,2595.5,2595.4,0.02]
[1751548222152,15.78907903,2595.5,2595.4,0.02]
[1751548222355,15.78807903,2595.5,2595.4,0.02]
[1751548222759,10.9238,2595.5,2595.4,0.02]
[1751548222939,14.77662219,2595.5,2595.4,0.02]
[1751548223141,11.83914802,2595.5,2595.4,0.02]
[1751548223744,0.192,2595.6,2595.4,0.02]
[1751548224064,2.04,2595.9,2595.5,1.0182]
[1751548224273,2.95549218,2595.9,2595.4,0.02]
[1751548224580,0.192,2595.7,2595.4,0.02]
[1751548225555,4.04456954,2595.7,2595.4,0.02]
[1751548225760,0.192,2595.7,2595.4,0.02]
[1751548226173,4.04452701,2595.7,2595.4,0.02]
[1751548226475,4.40282219,2595.5,2595.4,0.02]
[1751548226649,5.31817972,2595.5,2595.4,0.02]
[1751548226852,0.91535753,2595.5,2595.4,0.02]
[1751548227280,4.76817972,2595.5,2595.4,0.02]
[1751548228388,5.31817972,2595.5,2595.4,0.02]
[1751548228761,6.14997972,2595.5,2595.4,0.02]
[1751548229949,36.14997972,2595.5,2595.4,0.02]
[1751548230151,44.13997972,2595.5,2595.4,0.02]
[1751548231263,5.17051605,2595.1,2595.0,0.02]
[1751548231464,29.19944836,2595.1,2595.0,0.02]
[1751548231784,30.11395632,2595.1,2595.0,0.02]
[1751548234492,4.40386156,2594.8,2594.5,0.02]
[1751548234677,5.22150718,2594.5,2594.3,0.02]
[1751548234884,15.83429285,2594.5,2594.3,0.02]
[1751548235559,35.17455291,2594.2,2594.0,0.02]
[1751548235751,56.25810405,2594.2,2594.0,0.02]
[1751548236488,22.40335114,2594.2,2594.0,0.02]
[1751548236794,26.25810405,2594.2,2594.0,0.02]
[1751548236992,27.16048522,2594.2,2594.0,0.02]
[1751548237205,57.16048522,2594.2,2594.0,0.02]
[1751548237892,4.4049015,2594.1,2594.0,0.02]
[1751548238099,4.5969015,2594.1,2594.0,0.02]
[1751548238999,0.192,2594.1,2594.0,0.02]
[1751548239203,2.233,2594.1,2594.0,0.02]
[1751548239498,10.335,2594.1,2594.0,0.02]
[1751548239662,14.7399015,2594.1,2594.0,0.02]
[1751548240792,10.885,2594.1,2594.0,0.02]
[1751548240992,0.192,2594.1,2594.0,0.02]
[1751548241167,14.7389015,2594.1,2594.0,0.02]
[1751548243694,10.334,2594.1,2594.0,0.02]
[1751548245580,11.4882,2594.1,2594.0,0.02]
[1751548246004,15.3431015,2594.1,2594.0,0.02]
[1751548249411,3.85496668,2594.1,2593.9,0.02]
[1751548249610,10.133,2594.0,2593.9,0.02]
[1751548250789,13.98805011,2594.0,2593.9,0.02]
[1751548251409,10.133,2594.0,2593.9,0.02]
[1751548251899,10.132,2594.0,2593.9,0.02]
[1751548252214,12.98155114,2594.9,2593.9,0.02]
[1751548252375,7.99,2595.2,2594.3,0.8113]
[1751548252579,7.99,2595.3,2594.8,0.8113]
[1751548253029,2.034,2595.4,2595.1,3.85332421]
[1751548253214,2.034,2595.4,2594.8,1.31635629]
[1751548253529,2.034,2595.4,2594.9,3.85371305]
[1751548253697,2.034,2595.4,2595.0,3.85356454]
[1751548254713,2.034,2595.4,2594.9,3.85366668]
[1751548254913,2.034,2595.4,2595.0,3.85348477]
[1751548255130,2.034,2595.4,2595.0,4.70534461]
[1751548255338,2.034,2595.4,2595.1,3.85339771]
[1751548255500,0.212,2595.5,2595.1,1.0077]
[1751548255694,0.02,2595.5,2595.4,3.85297064]
[1751548256930,0.02,2595.5,2595.0,3.8535284]
[1751548256931,0.55,2595.4,2594.6,0.7828]
[1751548257107,13.72355114,2595.4,2594.6,4.63681783]
[1751548257305,0.192,2595.0,2594.6,4.63681783]
[1751548257510,0.192,2595.0,2594.6,5.50514295]
[1751548257712,0.192,2595.0,2594.6,1.65112512]
[1751548258802,0.192,2595.0,2594.6,5.50525201]
[1751548259534,0.192,2595.0,2594.6,1.65112512]
[1751548260833,0.192,2595.0,2594.6,0.7828]
[1751548261645,0.192,2595.0,2594.5,0.192]
[1751548261844,0.192,2594.6,2594.2,1.0068]
[1751548263954,0.192,2594.6,2594.2,4.86154582]
[1751548264851,0.192,2594.6,2594.3,3.85454734]
[1751548265404,0.02,2595.0,2594.4,3.85432821]
[1751548265636,0.192,2594.8,2594.3,4.04653251]
[1751548265839,0.192,2594.8,2594.3,0.192]
[1751548266636,0.192,2594.8,2594.3,0.67815408]
[1751548266840,0.02,2595.0,2594.5,4.04621465]
[1751548267004,0.212,2595.0,2594.5,4.04621465]
[1751548267609,0.212,2595.0,2594.6,3.85414323]
[1751548268540,0.212,2595.0,2594.5,0.192]
[1751548269211,0.212,2595.0,2594.6,3.85412569]
[1751548269445,0.212,2595.0,2594.5,4.04625367]
[1751548269822,0.212,2595.0,2594.6,3.85412649]
[1751548270033,0.212,2595.0,2594.9,3.85371305]
[1751548270345,0.02,2595.0,2594.9,1.0166]
[1751548270522,0.02,2595.0,2594.7,3.85392315]
[1751548270717,0.02,2595.0,2594.7,5.39875927]
[1751548270945,0.02,2595.0,2594.7,4.04592315]
[1751548271239,0.02,2595.0,2594.6,4.65155507]
[1751548271439,0.212,2595.0,2594.6,4.65155507]
[1751548271778,0.212,2595.0,2594.6,4.65154524]
[1751548271911,0.212,2595.0,2594.6,0.7974]
[1751548275321,0.212,2595.0,2594.6,0.484362]
[1751548275548,0.212,2595.0,2594.7,3.85389681]
[1751548275549,0.02,2595.0,2594.7,3.85389681]
[1751548275858,0.02,2595.0,2594.8,4.67420539]
[1751548276025,0.02,2595.0,2594.8,0.8204]
[1751548277151,0.02,2595.0,2594.7,0.192]
[1751548277741,0.02,2595.0,2594.4,4.64528547]
[1751548277948,0.212,2595.0,2594.5,0.192]
[1751548278659,0.192,2594.8,2594.4,0.7909]
[1751548278863,0.02,2595.0,2594.6,3.85406834]
[1751548279051,0.02,2595.0,2594.7,0.0385401]
[1751548279230,0.02,2595.0,2594.6,0.7909]
[1751548279231,0.02,2595.0,2594.8,0.192]
[1751548279456,0.02,2595.0,2594.9,3.85371305]
[1751548279856,0.02,2595.0,2594.8,4.0843427]
[1751548280158,0.02,2595.0,2594.8,0.192]
[1751548280349,0.02,2595.0,2594.8,4.04584234]
[1751548280550,0.02,2595.0,2594.9,3.85371305]
[1751548280750,0.02,2595.0,2594.0,0.01]
[1751548280954,0.212,2595.0,2594.5,0.192]
[1751548281125,0.212,2595.0,2594.5,4.04628767]
[1751548281331,0.212,2595.0,2594.5,0.192]
[1751548281860,16.83550082,2594.8,2594.1,0.7757]
[1751548282069,0.192,2594.7,2594.2,0.192]
[1751548284360,0.192,2594.7,2594.2,0.092]
[1751548284660,0.02,2595.0,2594.5,3.85424021]
[1751548284864,0.02,2595.0,2594.5,4.04622054]
[1751548284865,0.56961547,2595.0,2594.5,4.04622054]
[1751548285051,0.212,2595.0,2594.5,4.04622054]
[1751548285641,0.212,2595.0,2594.5,0.192]
[1751548286269,0.5697878,2595.0,2594.5,0.192]
[1751548288050,0.212,2595.0,2594.5,0.192]
[1751548288475,0.56981072,2595.0,2594.5,0.192]
[1751548288675,0.56981072,2595.0,2594.5,4.04629246]
[1751548288968,0.212,2595.0,2594.5,4.04629246]
[1751548289372,0.56981878,2595.0,2594.5,0.192]
[1751548289678,0.56981878,2595.0,2594.5,4.04629354]
[1751548291079,0.56981878,2595.0,2594.6,3.85413416]
[1751548291378,0.56981878,2595.0,2594.6,3.854125]
[1751548291746,0.56981878,2595.0,2594.7,3.85398107]
[1751548292077,0.212,2595.0,2594.9,3.85371305]
[1751548292374,0.02,2595.0,2594.7,4.64393496]
[1751548292575,0.02,2595.0,2594.7,3.85392239]
[1751548293261,0.02,2595.0,2594.6,0.192]
[1751548293462,0.02,2595.0,2594.3,4.61502537]
[1751548293463,0.7578,2594.9,2594.3,4.61502537]
[1751548293787,1.11557264,2594.9,2594.2,3.85468786]
[1751548293986,2.02778345,2594.9,2594.2,3.85468786]
[1751548294146,1.67001081,2594.9,2594.2,3.85468786]
[1751548294453,5.52386675,2594.9,2594.1,0.8332]
[1751548294658,1.67001081,2594.9,2594.1,4.68803433]
[1751548294853,0.8139,2594.8,2594.0,0.01]
[1751548295068,1.17167129,2594.8,2594.2,3.85471008]
[1751548295384,0.20838821,2594.7,2594.2,3.85471008]
[1751548296075,0.8139,2594.8,2594.3,3.85453987]
[1751548296581,0.8139,2594.8,2594.2,3.85468751]
[1751548296950,1.17164259,2594.8,2594.2,3.85468751]
[1751548297271,0.8139,2594.8,2594.2,3.85468751]
[1751548297486,1.17162143,2594.8,2594.2,3.85471561]
[1751548297689,0.8139,2594.8,2594.4,3.85440457]
[1751548298185,0.8139,2594.8,2594.3,3.85453978]
[1751548299190,0.8139,2594.8,2594.3,3.85458863]
[1751548299564,0.8139,2594.8,2594.2,3.85474794]
[1751548300691,0.8139,2594.8,2594.1,4.63353979]
[1751548301078,0.8139,2594.8,2594.2,3.85472474]
[1751548301957,0.8139,2594.8,2594.3,0.03854604]
[1751548302158,0.02,2595.0,2594.8,3.85377754]
[1751548302372,0.02,2595.0,2594.9,5.10662793]
[1751548302686,0.01,2596.0,2595.4,3.85297064]
[1751548302687,1e-08,2595.5,2595.4,3.85297064]
[1751548302988,1e-08,2595.5,2595.4,14.82450034]
[1751548303288,1e-08,2595.5,2595.4,14.78597064]
[1751548303491,0.01,2596.0,2595.9,3.85222851]
[1751548303689,0.01,2596.0,2595.9,13.14145136]
[1751548304764,0.01,2596.0,2595.9,13.33345136]
[1751548306814,0.01,2596.0,2595.9,1.40822285]
[1751548306993,0.01,2596.0,2595.5,3.85269494]
[1751548307292,0.01,2596.0,2595.7,0.192]
[1751548307498,0.01,2596.0,2595.7,4.04450495]
[1751548307682,0.01,2596.0,2595.9,3.85222851]
[1751548307883,0.01,2596.0,2595.9,0.192]
[1751548308497,0.01,2596.0,2595.9,4.44866492]
[1751548308698,0.01,2596.0,2595.9,4.04422851]
[1751548308890,0.01,2596.0,2595.9,0.192]
[1751548311096,0.01,2596.0,2595.9,4.04422851]
[1751548311296,0.01,2596.0,2595.9,0.192]
[1751548311497,0.01,2596.0,2595.9,4.04422851]
[1751548311702,0.01,2596.0,2595.9,5.01257602]
[1751548312596,0.01,2596.0,2595.9,1.16034751]
[1751548313402,0.01,2596.0,2595.9,0.192]
[1751548315409,0.8081,2596.0,2595.4,3.85296846]
[1751548315612,12.98155114,2595.7,2595.0,3.85356135]
[1751548315781,0.192,2595.4,2595.0,0.192]
[1751548315982,0.192,2595.4,2595.0,4.04555959]
[1751548316395,0.192,2595.4,2595.1,3.85341605]
[1751548316595,0.7981,2595.6,2595.1,3.85341605]
[1751548316848,0.7981,2595.6,2595.3,0.192]
[1751548317117,0.7611,2595.9,2595.3,3.8531053]
[1751548317305,0.7611,2595.9,2595.6,0.192]
[1751548317498,0.7611,2595.9,2595.6,4.04459343]
[1751548317680,0.7611,2595.9,2595.6,0.192]
[1751548318028,0.7611,2595.9,2595.6,4.04466042]
[1751548318327,0.7611,2595.9,2595.6,0.192]
[1751548320213,0.7611,2595.9,2595.6,4.04458784]
[1751548320411,0.7611,2595.9,2595.6,0.192]
[1751548321190,0.192,2595.8,2595.4,0.192]
[1751548324916,0.192,2595.8,2595.5,3.85276905]
[1751548325103,0.192,2595.8,2595.4,4.0449555]
[1751548325104,0.192,2595.8,2595.4,0.192]
[1751548325526,0.192,2595.8,2595.5,3.85268787]
[1751548325693,0.192,2595.8,2595.4,0.192]
[1751548326026,0.01,2596.0,2595.6,3.85258116]
[1751548326242,0.01,2595.9,2595.7,0.192]
[1751548326542,0.01,2595.9,2595.8,3.85237691]
[1751548327229,0.01,2595.9,2595.7,4.04443963]
[1751548327394,0.01,2595.9,2595.7,0.192]
[1751548327833,0.7643,2595.8,2595.4,3.8728351]
[1751548328033,0.7643,2595.8,2595.4,8.081]
[1751548328268,0.192,2595.7,2595.4,0.02]
[1751548328867,13.74585114,2595.8,2595.4,0.02]
[1751548329160,0.192,2595.6,2595.4,0.02]
[1751548332229,0.192,2595.7,2595.4,0.02]
[1751548332427,0.01,2595.9,2595.5,0.03852822]
[1751548332632,0.01,2595.9,2595.6,3.8525477]
[1751548333048,0.01,2595.9,2595.7,3.85240951]
[1751548333248,0.01,2595.9,2595.8,3.85237691]
[1751548333457,0.01,2595.9,2595.7,3.85241389]
[1751548333656,0.01,2595.9,2595.8,3.85237691]
[1751548333820,0.01,2595.9,2595.7,3.85246296]
[1751548334023,0.01,2595.9,2595.8,3.85237691]
[1751548334642,0.01,2595.9,2595.6,0.87303159]
[1751548334848,0.01,2595.9,2595.6,4.72563363]
[1751548335068,0.01,2595.9,2595.7,3.85250134]
[1751548335921,0.01,2595.9,2595.6,0.87303159]
[1751548336351,0.01,2595.9,2595.6,4.72566494]
[1751548336541,0.01,2595.9,2595.7,3.85250554]
[1751548336948,0.01,2595.9,2595.6,4.72564076]
[1751548337147,0.01,2595.9,2595.6,4.72569703]
[1751548337662,0.01,2595.9,2595.4,0.02]
[1751548337663,0.192,2595.6,2595.4,0.02]
[1751548337862,0.7907,2595.5,2595.4,0.02]
[1751548338160,4.64352219,2595.5,2595.4,0.02]
[1751548339057,0.7907,2595.5,2595.4,0.02]
[1751548340151,4.64352219,2595.5,2595.4,0.02]
[1751548341449,0.7907,2595.5,2595.4,0.02]
[1751548342565,0.192,2595.5,2595.4,0.02]
[1751548342740,0.192,2595.6,2595.4,0.02]
[1751548342940,2.027,2595.9,2595.4,0.212]
[1751548343140,0.01,2595.9,2595.8,3.85237691]
[1751548343368,0.01,2595.9,2595.8,4.81486432]
[1751548344843,0.01,2595.9,2595.8,4.85338808]
[1751548346891,0.01,2595.9,2595.8,5.68428808]
[1751548347071,0.01,2595.9,2595.8,5.64576432]
[1751548347375,0.02,2596.1,2596.0,3.85208012]
[1751548347577,0.02,2596.1,2596.0,5.86328536]
[1751548347873,1e-08,2596.1,2596.0,14.42976456]
[1751548349350,1e-08,2596.1,2596.0,26.44576456]
[1751548350543,1e-08,2596.6,2596.5,5.18473834]
[1751548350753,1e-08,2596.6,2596.5,13.79472555]
[1751548350952,1e-08,2596.6,2596.5,13.94821217]
[1751548351778,0.01,2597.0,2596.9,3.85074511]
[1751548351979,0.01,2597.0,2596.9,12.92554511]
[1751548352182,1e-08,2597.0,2596.9,12.92554511]
[1751548352385,1e-08,2597.0,2596.9,14.60318645]
[1751548355462,1e-08,2597.0,2596.9,6.55118645]
[1751548355698,1e-08,2597.0,2596.9,14.60118645]
[1751548355857,1e-08,2597.0,2596.9,5.72038645]
[1751548356057,1e-08,2597.0,2596.9,0.192]
[1751548356258,1e-08,2597.0,2596.7,11.90001635]
[1751548356459,1e-08,2597.0,2596.7,8.049]
[1751548357183,0.8077,2596.9,2596.7,3.85100084]
[1751548357386,0.8077,2596.9,2596.7,11.89900084]
[1751548357583,0.8077,2596.9,2596.8,3.8508934]
[1751548358158,1e-08,2597.0,2596.9,3.85074511]
[1751548358557,1e-08,2597.0,2596.7,8.048]
[1751548358894,1e-08,2597.0,2596.6,12.09110946]
[1751548359086,1e-08,2597.0,2596.7,3.85103842]
[1751548359589,1e-08,2597.0,2596.6,0.192]
[1751548359772,1e-08,2597.0,2596.5,0.192]
[1751548359973,1e-08,2597.0,2596.5,8.239]
[1751548360171,0.783,2596.9,2596.5,0.192]
[1751548360606,13.76455114,2596.9,2596.4,8.047]
[1751548360765,0.192,2596.8,2596.4,8.047]
[1751548360966,0.192,2596.8,2596.3,0.192]
[1751548361194,17.61530344,2596.9,2596.1,11.89885936]
[1751548361398,0.192,2596.6,2596.2,0.192]
[1751548362080,0.192,2596.6,2596.5,0.02]
[1751548365612,0.9566,2596.6,2596.5,0.02]
[1751548365814,4.80779001,2596.6,2596.5,0.02]
[1751548366477,0.9566,2596.6,2596.5,0.02]
[1751548369180,4.80779001,2596.6,2596.5,0.02]
[1751548370817,0.9566,2596.6,2596.5,0.02]
[1751548370992,0.7666,2595.9,2595.4,0.02]
[1751548371195,13.17355114,2595.6,2595.4,0.02]
[1751548371382,0.7666,2595.5,2595.4,0.02]
[1751548372006,0.192,2595.6,2595.4,0.02]
[1751548373110,0.192,2595.6,2595.4,3.87286624]
[1751548373294,0.758,2595.9,2595.5,3.85282219]
[1751548373497,0.192,2595.8,2595.4,3.87289229]
[1751548373685,0.192,2595.8,2595.5,3.85279523]
[1751548374008,0.192,2595.8,2595.4,3.8729026]
[1751548374215,0.192,2595.8,2595.4,0.02]
[1751548375517,0.192,2595.6,2595.4,0.02]
[1751548376018,0.7718,2595.5,2595.4,0.02]
[1751548376338,0.7718,2595.0,2594.7,0.192]
[1751548376484,13.75335114,2595.0,2594.7,0.192]
[1751548378722,0.192,2595.1,2594.7,0.9702]
[1751548378887,2.012,2595.6,2595.0,4.04556454]
[1751548378888,0.192,2595.4,2595.0,4.04556454]
[1751548380601,0.192,2595.4,2595.1,3.85340222]
[1751548381097,0.192,2595.4,2595.0,0.192]
[1751548381098,0.192,2595.4,2595.0,4.0454955]
[1751548381305,0.192,2595.4,2595.1,3.85341447]
[1751548381634,12.98155114,2595.5,2594.3,0.02]
[1751548381834,0.192,2595.0,2594.5,4.04630427]
[1751548381998,0.192,2595.0,2594.7,3.85391214]
[1751548382326,0.192,2595.0,2594.5,0.192]
[1751548382623,0.192,2594.8,2594.4,0.02]
[1751548382789,4.6515409,2595.0,2594.4,0.02]
[1751548382790,16.83562624,2594.7,2594.4,0.02]
[1751548382995,0.192,2594.5,2594.4,0.02]
[1751548384903,0.192,2594.5,2594.4,3.87445575]
[1751548385108,0.192,2594.5,2594.4,0.02]
[1751548385415,0.192,2594.7,2594.4,0.05854455]
[1751548385628,0.192,2594.7,2594.4,0.02]
[1751548385931,12.98155114,2594.9,2594.4,0.02]
[1751548385932,0.192,2594.5,2594.4,0.02]
[1751548386289,13.17355114,2594.5,2594.4,0.02]
[1751548387425,0.192,2594.5,2594.4,3.87445575]
[1751548387600,8.7423,2594.8,2594.7,3.85401009]
[1751548387805,8.7423,2594.8,2594.5,3.85428873]
[1751548388013,8.7423,2594.8,2594.4,0.02]
[1751548388218,0.192,2594.6,2594.4,3.87438498]
[1751548388631,0.192,2594.6,2594.5,3.85430718]
[1751548388836,0.192,2594.6,2594.4,3.87438498]
[1751548388837,0.192,2594.6,2594.4,3.87435975]
[1751548389027,0.192,2594.6,2594.4,0.02]
[1751548389332,12.98155114,2594.7,2594.4,0.02]
[1751548391303,12.98155114,2594.7,2594.4,3.87435687]
[1751548391522,2.7643,2594.8,2594.5,3.85426521]
[1751548391702,2.7643,2594.8,2594.4,13.87437691]
[1751548391901,0.192,2594.5,2594.4,0.02]
[1751548392142,0.192,2594.5,2594.4,3.87445575]
[1751548392497,0.192,2594.5,2594.4,0.02]
[1751548395139,0.192,2594.5,2594.4,3.87445575]
[1751548396508,0.192,2594.8,2594.7,3.85401009]
[1751548397231,0.192,2594.8,2594.5,3.85425942]
[1751548397232,0.192,2594.8,2594.5,3.85421876]
[1751548397430,2.013,2595.0,2594.4,0.02]
[1751548397431,12.98155114,2594.9,2594.4,0.02]
[1751548397641,0.192,2594.7,2594.4,3.87443337]
[1751548398009,0.192,2594.7,2594.5,3.85424523]
[1751548398215,2.013,2595.0,2594.7,3.85387745]
[1751548398443,0.192,2594.9,2594.6,10.0]